Cogmind - Beta 13 @@@ ROGUE MODE // 2024.04.10 @ 23:14:10 Player: nfd Result: Destroyed by G-50 Soldier with Heavy Laser Performance ------------- Evolutions (1) 500 Regions Visited (5) 1000 Robots Destroyed (18) 90 Value Destroyed (642) 642 Prototype IDs (2) 40 Alien Tech Used (0) 0 Bonus (0) 0 TOTAL SCORE: 2272 Bonus ------- None Cogmind --------- Core Integrity 0/400 Matter 280/300 Energy 99/100 System Corruption 0% Temperature Cool (9) Movement Core (50) Location -6/Proximity Caves Parts ------- > --- POWER (1) -------- (None) > --- PROPULSION (3) --- (None) > --- UTILITY (3) ------ (None) > --- WEAPON (2) ------- (None) > --- INVENTORY (5) ---- Large Battery (200) Salvage Targeting Computer System Restoration Module Hacking Drone Bay Plasma Cannon Peak State ------------ > --- POWER ------------ Improved Deuterium Engine > --- PROPULSION ------- Carbon-fiber Leg Carbon-fiber Leg Carbon-fiber Leg > --- UTILITY ---------- Medium Storage Unit Advanced Melee Analysis Suite Improved Medium Armor Plating > --- WEAPON ----------- Plasma Cannon CR-A16's Pointy Stick > --- INVENTORY -------- Improved Deuterium Engine Aluminum Leg Aluminum Leg Improved Heat Sink Large Battery Small Matter Pod Salvage Targeting Computer System Restoration Module Hacking Drone Bay Beamcaster [Rating: 34] Favorites ----------- Power Light Nuclear Core Engine Light Ion Engine Power Core Light Nuclear Core Propulsion Aluminum Leg Leg Aluminum Leg Utility Medium Storage Unit Device Sensor Array Storage Medium Storage Unit Processor Advanced Melee Analysis Suite Protection Improved Medium Armor Plating Weapon CR-A16's Pointy Stick Energy Gun Beamcaster Energy Cannon Plasma Cannon Ballistic Gun Shotgun Piercing Weapon CR-A16's Pointy Stick Build | -11 -10 -9 -9 -7 -6 ------- Run | Yrd Mat Mat Min Zio Pro Slots Evolved 2 | . . 2 . . . Power . | . . . . . . Propulsion 1 | . . 1 . . . Utility 1 | . . 1 . . . Weapon . | . . . . . . Parts Attached 37 | 5 5 6 2 7 12 Power 4 | 1 . . 1 . 2 Engine 3 | 1 . . . . 2 Core 1 | . . . 1 . . Reactor . | . . . . . . Propulsion 12 | 2 . 2 1 3 4 Treads . | . . . . . . Leg 12 | 2 . 2 1 3 4 Wheel . | . . . . . . Hover . | . . . . . . Flight . | . . . . . . Utility 12 | . 4 3 . 1 4 Device 1 | . 1 . . . . Storage 6 | . 3 1 . . 2 Processor 1 | . . . . . 1 Hackware . | . . . . . . Protection 4 | . . 2 . 1 1 Artifact . | . . . . . . Weapon 9 | 2 1 1 . 3 2 Energy Gun 4 | 2 . . . 1 1 Energy Cannon 2 | . . . . 1 1 Ballistic Gun 2 | . 1 1 . . . Ballistic Cannon . | . . . . . . Launcher . | . . . . . . Special Weapon . | . . . . . . Impact Weapon . | . . . . . . Slashing Weapon . | . . . . . . Piercing Weapon 1 | . . . . 1 . Special Melee Weapon . | . . . . . . Unidentified Prototypes . | . . . . . . Parts Lost 11 | . . 2 1 . 8 Power 2 | . . 1 . . 1 Propulsion 7 | . . 1 1 . 5 Utility 1 | . . . . . 1 Weapon 1 | . . . . . 1 Highest Loss Streak 8 | . . 1 1 . 8 To Critical Strikes . | . . . . . . Average Slot Usage (%) 96 | . 95 90 97 100 93 Engine 4 | . 14 7 . . 6 Core 6 | . . . 10 11 4 Leg 31 | . 28 29 31 33 30 Storage 20 | . 22 22 22 22 14 Processor 1 | . . . . . 7 Protection 8 | . . 3 11 11 9 Energy Gun 5 | . 24 . . 3 5 Energy Cannon 3 | . . . . 6 4 Ballistic Gun 5 | . 2 22 22 1 . Piercing Weapon 7 | . . . . 10 10 Naked Turns 41 | . . . . . 41 Heaviest Build 37 | 6 19 21 25 33 37 Greatest Support 45 | 20 20 30 30 35 45 Greatest Overweight (x) 3 | . . 1 1 . 3 Average Overweight (x) . | . . . . . . Largest Inventory Capacity 10 | 5 10 10 10 10 10 Average Capacity 9 | 5 9 10 10 10 9 Most Carried 10 | 5 10 10 10 10 10 Average Carried 9 | 2 7 9 9 9 9 Final Capacity 10 | 5 10 10 10 10 5 Final Carried 10 | 4 9 10 10 10 5 Class Distribution -------------------- 68% | Mutant 31% | Scavenger-Mutant Dominant Class ---------------- Mutant | -10/Materials Mutant | -9/Materials Mutant | -9/Mines Mutant | -7/Zion Scavenger-Mutant | -6/Proximity Caves Resources | -11 -10 -9 -9 -7 -6 ----------- Run | Yrd Mat Mat Min Zio Pro Matter Collected 646 | 250 78 159 56 50 53 Remotely . | . . . . . . Salvage Created 815 | 30 78 215 . . 492 Parts 40 | 1 4 12 . . 23 Haulers Intercepted . | . . . . . . Recyclers Shooed 1 | . 1 . . . . Parts Field Recycled . | . . . . . . Retrieved Matter . | . . . . . . Parts Self-Destructed 5 | . . . . . 5 Prevented 1 | . . . . . 1 Kills | -11 -10 -9 -9 -7 -6 ------- Run | Yrd Mat Mat Min Zio Pro Combat Hostiles Destroyed 17 | 1 4 4 . . 8 Melee 5 | . . . . . 5 Guns 10 | 1 4 4 . . 1 Cannons 2 | . . . . . 2 Classes Destroyed 5 | 1 1 2 . . 1 Recycler 1 | . . 1 . . . Swarmer 4 | . 3 . . . 1 Grunt 5 | 1 1 2 . . 1 Sentry 2 | . . 2 . . . Thug 1 | . . . . . 1 Savage 5 | . . . . . 5 Best Kill Streak 3 | 1 3 3 . . 3 Combat Bots Only 3 | 1 3 3 . . 3 Max Kills in Single Turn 1 | 1 1 1 . . 1 Gunslinging . | . . . . . . Exploded . | . . . . . . Melee 1 | . . . . . 1 Uniques/NPCs Destroyed . | . . . . . . Combat | -11 -10 -9 -9 -7 -6 -------- Run | Yrd Mat Mat Min Zio Pro Hostile Shots Fired 175 | 4 10 43 12 . 106 Missed 52 | 2 2 9 4 . 35 Damage Taken 2181 | 20 80 472 123 . 1486 Core 412 | . 9 64 . . 339 Absorbed by Shields . | . . . . . . Core Remaining (%) 98 | 100 96 . . . . Volleys Fired 39 | 3 11 16 . . 9 Largest 2 | 2 2 2 . . 1 Hottest 90 | 90 90 46 . . 80 Shots Fired 68 | 6 21 32 . . 9 Gun 60 | 6 21 32 . . 1 Cannon 8 | . . . . . 8 Launcher . | . . . . . . Special . | . . . . . . Kinetic 32 | . . 32 . . . Thermal 36 | 6 21 . . . 9 Explosive . | . . . . . . Electromagnetic . | . . . . . . Robot Hit Streak 7 | 2 7 6 . . 7 Robot Miss Streak 4 | 2 3 4 . . 1 Penetration Max . | . . . . . . Secondary Targets 2 | . . 2 . . . Max Gunslinging Chain 1 | . . 1 . . . Shots Hit Robots 66 | 3 11 29 . . 23 Core Hits 35 | 2 5 13 . . 15 Critical Kills . | . . . . . . Critical Parts Destroyed . | . . . . . . Critical Strikes 2 | 1 . . . . 1 Burn 1 | 1 . . . . . Impale 1 | . . . . . 1 Melee Attacks 21 | . . . . . 21 Impact . | . . . . . . Slashing . | . . . . . . Piercing 21 | . . . . . 21 Sneak Attacks . | . . . . . . Combat Hostiles . | . . . . . . Follow-up Attacks . | . . . . . . Damage Inflicted 1288 | 35 127 398 . . 728 Guns 576 | 35 127 394 . . 20 Cannons 152 | . . . . . 152 Explosions . | . . . . . . Melee 556 | . . . . . 556 Ramming 4 | . . 4 . . . Kinetic 394 | . . 394 . . . Thermal 334 | 35 127 . . . 172 Explosive . | . . . . . . Electromagnetic . | . . . . . . Impact . | . . . . . . Slashing . | . . . . . . Piercing 556 | . . . . . 556 Highest Corruption . | . . . . . . Average Corruption . | . . . . . . Corruption Purged . | . . . . . . Corruption Blocked . | . . . . . . Overload Shots . | . . . . . . Overflow Damage . | . . . . . . Projectiles . | . . . . . . Explosions . | . . . . . . Melee . | . . . . . . Knockbacks . | . . . . . . Impact . | . . . . . . Kinetic . | . . . . . . Secondary . | . . . . . . Self-Inflicted Damage . | . . . . . . Shots . | . . . . . . Rammed . | . . . . . . Targets Rammed 1 | . . 1 . . . Kicked 1 | . . 1 . . . Crushed . | . . . . . . Highest Temperature 261 | 96 120 17 . . 261 Average Temperature 60 | 49 46 5 . . 93 Received Heat Transfer 690 | 12 18 240 69 . 351 Effects 1 | . . . . . 1 Interference 1 | . . . . . 1 Siege Activations . | . . . . . . Robots Corrupted . | . . . . . . Combat Hostiles . | . . . . . . Parts Fried . | . . . . . . Impact Corruptions . | . . . . . . Robots Melted . | . . . . . . Combat Hostiles . | . . . . . . Parts Melted 2 | 2 . . . . . Heat Transferred 833 | 173 323 . . . 337 Parts Sabotaged . | . . . . . . Parts Stolen . | . . . . . . Parts Stripped . | . . . . . . Power Chain Reactions . | . . . . . . Alert | -11 -10 -9 -9 -7 -6 ------- Run | Yrd Mat Mat Min Zio Pro Peak Influence 176 | 20 148 176 . . . Initial 62 | . 13 62 . . . Average 66 | 2 99 80 . . . Maximum Alert Level . | . . . . . . Low Security (%) 100 | 100 100 100 100 . . Level 1 . | . . . . . . Level 2 . | . . . . . . Level 3 . | . . . . . . Level 4 . | . . . . . . Level 5 . | . . . . . . High Security . | . . . . . . Max Security . | . . . . . . Squads Dispatched 5 | . 1 4 . . . Investigation 1 | . . 1 . . . Extermination . | . . . . . . Reinforcement 4 | . 1 3 . . . Assault . | . . . . . . Garrison . | . . . . . . Intercept . | . . . . . . Searches Triggered . | . . . . . . Construction Impeded . | . . . . . . Haulers Reinforced . | . . . . . . Active Scanning Responses . | . . . . . . Cargo Convoy Interrupts . | . . . . . . Stealth | -11 -10 -9 -9 -7 -6 --------- Run | Yrd Mat Mat Min Zio Pro Distress Signals 4 | . . 4 . . . Communications Jammed . | . . . . . . Distress Signals . | . . . . . . Times Spotted 37 | 1 8 5 5 . 18 Peak Tracking Total 11 | 1 2 4 3 . 11 Tactical Retreats 4 | . . . . . 4 Traps | -11 -10 -9 -9 -7 -6 ------- Run | Yrd Mat Mat Min Zio Pro Traps Triggered 1 | . . 1 . . . Indirectly . | . . . . . . Trap Hack Attempts . | . . . . . . Triggered . | . . . . . . Disarmed . | . . . . . . Reprogrammed . | . . . . . . Reused . | . . . . . . Traps Extracted . | . . . . . . Installed . | . . . . . . Triggered . | . . . . . . Machines | -11 -10 -9 -9 -7 -6 ---------- Run | Yrd Mat Mat Min Zio Pro Machines Disabled . | . . . . . . Max in Single Turn . | . . . . . . Machines Repaired . | . . . . . . Machines Dismantled . | . . . . . . Machines Sabotaged . | . . . . . . Overloaded Fab Kills . | . . . . . . Hacking | -11 -10 -9 -9 -7 -6 --------- Run | Yrd Mat Mat Min Zio Pro Machines Accessed 2 | . 1 1 . . . Terminals 2 | . 1 1 . . . Fabricators . | . . . . . . Repair Stations . | . . . . . . Recycling Units . | . . . . . . Scanalyzers . | . . . . . . Garrison Access . | . . . . . . Total Hacks 4 | . 2 2 . . . Successful 2 | . 1 1 . . . Failed 2 | . 1 1 . . . Catastrophic . | . . . . . . Database Lockouts . | . . . . . . Manual . | . . . . . . Terminals 4 | . 2 2 . . . Fabricators . | . . . . . . Repair Stations . | . . . . . . Recycling Units . | . . . . . . Scanalyzers . | . . . . . . Garrison Access . | . . . . . . Terminal Hacks 2 | . 1 1 . . . Prototype ID Bank 1 | . 1 . . . . Locate Traps 1 | . . 1 . . . Fabricator Hacks . | . . . . . . Repair Station Hacks . | . . . . . . Recycling Unit Hacks . | . . . . . . Scanalyzer . | . . . . . . Garrison Access Hacks . | . . . . . . Unauthorized Hacks . | . . . . . . Terminals . | . . . . . . Fabricators . | . . . . . . Repair Stations . | . . . . . . Recycling Units . | . . . . . . Scanalyzers . | . . . . . . Garrison Access . | . . . . . . Data Cores Recovered . | . . . . . . Used . | . . . . . . Hacking Detections 1 | . 1 . . . . Full Trace Events . | . . . . . . Feedback Events . | . . . . . . Feedback Blocked . | . . . . . . Robot Schematics Acquired . | . . . . . . Robots Built . | . . . . . . Authchips . | . . . . . . Time . | . . . . . . Total Robot Build Rating . | . . . . . . Part Schematics Acquired . | . . . . . . Parts Built . | . . . . . . Authchips . | . . . . . . Time . | . . . . . . Total Part Build Rating . | . . . . . . Parts Repaired . | . . . . . . Time . | . . . . . . Parts Recycled . | . . . . . . Recycled Matter . | . . . . . . Retrieved Matter . | . . . . . . Retrieved Components . | . . . . . . Parts Scanalyzed . | . . . . . . Part Schematics Acquired . | . . . . . . Parts Damaged . | . . . . . . Bothacking | -11 -10 -9 -9 -7 -6 ------------ Run | Yrd Mat Mat Min Zio Pro Used RIF Installer . | . . . . . . Robots Hacked . | . . . . . . Non-combat . | . . . . . . Combat . | . . . . . . Robot Hacks Applied . | . . . . . . Relay Couplers Released . | . . . . . . Fabnet Peak Effective % . | . . . . . . Robots Rewired . | . . . . . . Allies Hacked . | . . . . . . Hacks Repelled . | . . . . . . Allies | -11 -10 -9 -9 -7 -6 -------- Run | Yrd Mat Mat Min Zio Pro Total Allies . | . . . . . . Largest Group . | . . . . . . Highest-Rated Group . | . . . . . . Highest-Rated Ally . | . . . . . . Total Orders . | . . . . . . Ally Attacks . | . . . . . . Total Damage . | . . . . . . Kills . | . . . . . . Allies Corrupted . | . . . . . . Allies Melted . | . . . . . . Intel | -11 -10 -9 -9 -7 -6 ------- Run | Yrd Mat Mat Min Zio Pro Robot Analysis Total . | . . . . . . Derelict Logs Recovered 1 | . . . . . 1 Drone Launches . | . . . . . . Drone Recoveries . | . . . . . . Exploration | -11 -10 -9 -9 -7 -6 ------------- Run | Yrd Mat Mat Min Zio Pro Turns Passed 3346 | 108 322 509 159 1403 845 Spaces Moved 2506 | 95 212 318 118 1136 627 Core 123 | 40 . . . . 83 Treads . | . . . . . . Legs 2383 | 55 212 318 118 1136 544 Wheels . | . . . . . . Hover . | . . . . . . Flight . | . . . . . . Fastest Speed 50 | 50 120 120 120 120 50 Average Speed 118 | 90 120 134 124 120 112 Slowest Speed 200 | 120 120 190 190 120 200 Overloaded Moves . | . . . . . . Propulsion Burnouts . | . . . . . . Robots Hopped . | . . . . . . Cave-ins Triggered . | . . . . . . Exploration Rate (%) 39 | 6 25 33 30 85 55 Regions Visited 5 Branch Regions 3 Pre-discovered Areas . | . . . . . . Known Exits Taken . | . . . . . . Unknown Exits Taken 5 | 1 1 1 1 1 . Scrap Searched 4 | . . . . 3 1 Spaces Dug . | . . . . . . Terrain Destroyed . | . . . . . . Melee . | . . . . . . Projectile . | . . . . . . AOE . | . . . . . . Terrain Rammed . | . . . . . . Walls Destroyed . | . . . . . . Machines Disabled . | . . . . . . Actions | -11 -10 -9 -9 -7 -6 --------- Run | Yrd Mat Mat Min Zio Pro Total 2780 | 111 262 373 131 1182 721 Wait 83 | . 14 12 4 14 39 Move 2501 | 94 211 317 117 1135 627 Hop . | . . . . . . Pick Up 56 | 9 13 12 5 13 4 Fast Attach 3 | . . . . . 3 Attach 31 | 5 5 6 2 6 7 Detach 5 | . 2 1 . . 2 Swap 3 | . . . . 1 2 Drop 37 | . 6 8 3 13 7 Fire 39 | 3 11 16 . . 9 Melee 21 | . . . . . 21 Ram . | . . . . . . Kick 1 | . . 1 . . . Crush . | . . . . . . Escape Stasis . | . . . . . . Rewire . | . . . . . . Trap . | . . . . . . Miscellaneous . | . . . . . . Route ------- -11/Scrapyard -10/Materials -9/Materials -9/Mines -7/Zion -6/Proximity Caves History --------- Turn | Location | Event 2 | -11/Scrapyard | Met Revision 17 85 | -11/Scrapyard | Discovered new exit (range 8) 109 | -11/Scrapyard | Entered Materials 306 | -10/Materials | Build established: Mutant 395 | -10/Materials | Discovered new exit (range 16) 431 | -10/Materials | Entered another Materials area 431 | -9/Materials | Evolved 2 slots: Propulsion x1, Utility x1 735 | -9/Materials | Met 8R-AWN 862 | -9/Materials | Discovered new exit (range 5) 940 | -9/Materials | Entered Mines 941 | -9/Mines | Followed 8R-AWN into the Mines 1018 | -9/Mines | A Derelict revealed a hidden shortcut to a safe place 1099 | -9/Mines | Entered Zion 1130 | -7/Zion | Found CR-A16's Pointy Stick 1444 | -7/Zion | Build established: Scavenger-Mutant 1452 | -7/Zion | Learned Factory emergency access door positions 2008 | -7/Zion | Build established: Mutant 2386 | -7/Zion | Discovered new exit (range 16) 2431 | -7/Zion | Given the Hacking Drone Bay 2431 | -7/Zion | Found Prototype Device 2502 | -7/Zion | Entered Proximity Caves 2638 | -6/Proximity Caves | Received a Behemoth hack from an annoying Tinkerer 3105 | -6/Proximity Caves | Build established: Scavenger-Mutant 3259 | -6/Proximity Caves | Core integrity fell below 50% 3299 | -6/Proximity Caves | Released all parts (5) 3304 | -6/Proximity Caves | Core integrity fell below 20% 3330 | -6/Proximity Caves | Lost 8 parts (1p5n1u1w) 3347 | -6/Proximity Caves | Destroyed by G-50 Soldier with Heavy Laser Last Messages --------------- Critical hit (Burn: +37). Autogun fries itself beyond repair. Lgt. Nuclear Core fries itself beyond repair. Imp. Deuterium Engine destroyed. VTOL Module fries itself beyond repair. Hrd. Light Armor Plating destroyed. Aluminum Leg destroyed. G-50 Soldier destroyed. Aluminum Leg destroyed. Beamcaster destroyed. Carbon-fiber Leg destroyed. Hvy. Laser fries itself beyond repair. Carbon-fiber Leg fries itself beyond repair. Carbon-fiber Leg destroyed. Released Adv. Melee Analysis Suite. Released Med. Storage Unit. Released CR-A16's Pointy Stick. Released Imp. Deuterium Engine. Released Sml. Matter Pod. Penetrated by Slug. Map ----- +----------------------------------------------------+ | ????????????????????????# ######### #????## # | | ????????????????????????# #???????# ###?## | | ????????????????????????# #???????## ### | | ????????????????????????# ###?????## | | ???????????????????????## ##????# | | ???????????????????????# # #????# ! | | ??????????????????????## #????# !!/ | | ?????????????????????## ## ###### * | | ??????????????????#### ### ### | | ?????????????????## ##?######### #?# | | ?????????????????# ##?????????# ## | | ?????????????# # # # ########??### ## | | ????????????# # #????## ### ## | | ????????????#### #?????## ##?###### | | ???????????????## ### # ### #??????###???????? | | ????????????????# #??# #### ##????????????????? | | ????????????????# ???###### #?????????????????? | | ????????????????# ???????## ##?????????????????? | | ????????????????# ####### #??????###?????????? | | ?????????????? #????## ###???????? | | ?????????????? ###### #???????? | | ?????????????? #g#### #???????? | | ?????????????? ## ##?# ###### ##???? #? | | ?????????????#??## ??# #?# #????# ##### #? | | ?????????????????#???## ### #???## #?? | | ?????????????????????# @ #??## #?? | | ????? ???????????????# #####??# #?? | | ????? ??????????????# #??????# ####?? | | ???? ##???????????#### #??????## ####????? | | ?????# #?????????????###???????# ## #???????? | | ??????# #???#################### #?# #?????? | | ???????# #??# #?? #????? | | ????????# ### ###################?? ####????? | | ???????## #???????????????????? ##???????? | | ???????# #?????????????????????#????????? | | ???????# #####??????????????????????????? | | ???????####### ##?????????????????????????? | | ?????????????# #?????????????????????????? | | ??????#####??# ##?????????????????????????? | | ??????# #### ##??????????????????????????? | | ??????# ## #???????????????????????????? | | ???????# ##???????????????????????????? | | ???????## ##????????????????????????????? | | ######### #???####??????????????????????? | | # ## ## #??## ##?????????????????????? | | #### #### ##????????????????????? | | #??# ## #????????????????????? | | #### #??# ## #?????????????????????? | | ##??## ### #??????????????????????? | | ########## ##?????????????????????? | +----------------------------------------------------+ Best States ------------- Heat Dissipation 28 Energy Generation 16 Energy Capacity 300 Matter Stores 350 Matter Capacity 350 Sight Range 16 Robot Scan Range 14 Terrain Scan Density 10 Armor Coverage 225 Evasion (%) 55 Melee Accuracy 8 Item Schematics ----------------- None Robot Schematics ------------------ None Fabricated ------------ Nothing Alien Tech Used ----------------- None Achievements -------------- Robot Respite Tourist Challenges ------------ None Game ------ Seed ChromaticOpticalMegatreads Manual? 0 Play Time 01:29:29 Cumulative 5.0 hours Start 2024.04.10 @ 21:00:26 End 2024.04.10 @ 23:14:10 Sessions 1 Manual Loads 0 Difficulty Rogue Special Mode None Game No. 3 Rogue 3 Adventurer 0 Explorer 0 Win Type - Total 0 Types 0/0/0/0/0/0/0/0/0 Lore% 4 Gallery% 5 Achievement% 3 Wizard Run 0 Options --------- Layout 0 ASCII 1 Keyboard 1 Movement Vi Keybinds 0 Fullscreen 1 Font 24/Smallcaps Map View 76x50 Zoom Use 0% Tactical HUD 0 Map Filters NONE Filters NONE Steam 0 RUN: 7be9070c-de05-4e84-8f0d-fe94e0682150